fUST/lending_fUST_20240828
["ID","MTS","AMOUNT","RATE_DAILY","PERIOD"]
[336381004,1724797849304,-500.0,0.00011506,2]
[336381005,1724797849314,-500.0,0.00011506,2]
[336381006,1724797849328,-500.0,0.00011506,2]
[336381007,1724797849338,-1322.73,0.00011506,2]
[336381008,1724797849347,-500.0,0.00011506,2]
[336381009,1724797849356,-500.0,0.00011506,2]
[336381010,1724797849365,-500.0,0.00011506,2]
[336381011,1724797849374,-500.0,0.00011506,2]
[336381012,1724797849383,-500.0,0.00011506,2]
[336381013,1724797849393,-500.0,0.00011506,2]
[336381014,1724797849404,-270.73110087,0.00011506,2]
[336381015,1724797849414,-654.84,0.00011506,2]
[336381016,1724797849427,-500.0,0.00011506,2]
[336381017,1724797849436,-500.0,0.00011506,2]
[336381018,1724797849447,-856.13,0.00011506,2]
[336381019,1724797849456,-500.0,0.00011506,2]
[336381020,1724797849466,-500.0,0.00011506,2]
[336381021,1724797849476,-500.0,0.00011506,2]
[336381022,1724797849487,-500.0,0.00011506,2]
[336381023,1724797849497,-500.0,0.00011506,2]
[336381024,1724797849506,-500.0,0.00011506,2]
[336381025,1724797849516,-4210.91,0.00011506,2]
[336381026,1724797849525,-500.0,0.00011506,2]
[336381027,1724797849535,-500.0,0.00011506,2]
[336381028,1724797849544,-218.50278203,0.00011506,2]
[336381029,1724797849554,-500.0,0.00011506,2]
[336381030,1724797849564,-500.0,0.00011506,2]
[336381031,1724797849578,-500.0,0.00011506,2]
[336381032,1724797849587,-500.0,0.00011506,2]
[336381033,1724797849597,-500.0,0.00011506,2]
[336381034,1724797849607,-500.0,0.00011506,2]
[336381035,1724797849616,-226.17752374,0.00011506,2]
[336381036,1724797849627,-500.0,0.00011506,2]
[336381037,1724797849637,-500.0,0.00011506,2]
[336381038,1724797849647,-199.87905609,0.00011506,2]
[336381039,1724797849657,-1310.5,0.00011506,2]
[336381040,1724797849666,-500.0,0.00011506,2]
[336381041,1724797849675,-500.0,0.00011506,2]
[336381042,1724797849685,-248.55963741,0.00011506,2]
[336381043,1724797849695,-2791.22,0.00011506,2]
[336381044,1724797849704,-500.0,0.00011506,2]
[336381045,1724797849842,-500.0,0.00011506,2]
[336381046,1724797849851,-192.01,0.00011506,2]
[336381047,1724797849861,-5760.34,0.00011506,2]
[336381048,1724797849870,-500.0,0.00011506,2]
[336381049,1724797849881,-1266.67,0.00011506,2]
[336381050,1724797849890,-546.31,0.00011506,2]
[336381051,1724797849900,-500.0,0.00011506,2]
[336381052,1724797849909,-485.59001987,0.00011506,2]
[336381053,1724797849919,-500.0,0.00011506,2]
[336381054,1724797849928,-2392.37,0.00011506,2]
[336381055,1724797849937,-6752.58,0.00011506,2]
[336381056,1724797849947,-500.0,0.00011506,2]
[336381057,1724797849957,-19039.17,0.00011506,2]
[336381058,1724797849967,-3767.5,0.00011506,2]
[336381059,1724797849977,-500.0,0.00011506,2]
[336381060,1724797849987,-708.06,0.00011506,2]
[336381061,1724797849996,-500.0,0.00011506,2]
[336381062,1724797850006,-1126.98,0.00011506,2]
[336381063,1724797850015,-4503.04,0.00011506,2]
[336381064,1724797850025,-500.0,0.00011506,2]
[336381065,1724797850034,-500.0,0.00011506,2]
[336381066,1724797850043,-500.0,0.00011506,2]
[336381067,1724797850053,-500.0,0.00011506,2]
[336381068,1724797850063,-610.53,0.00011506,2]
[336381069,1724797850076,-500.0,0.00011506,2]
[336381070,1724797850085,-500.0,0.00011506,2]
[336381071,1724797850095,-500.0,0.00011506,2]
[336381072,1724797850107,-500.0,0.00011506,2]
[336381073,1724797850117,-500.0,0.00011506,2]
[336381074,1724797850127,-500.0,0.00011506,2]
[336381075,1724797850137,-500.0,0.00011506,2]
[336381076,1724797850146,-247.28,0.00011506,2]
[336381077,1724797850156,-500.0,0.00011506,2]
[336381078,1724797850166,-500.0,0.00011506,2]
[336381079,1724797850176,-500.0,0.00011506,2]
[336381080,1724797850185,-1663.07,0.00011506,2]
[336381081,1724797850195,-500.0,0.00011506,2]
[336381082,1724797850205,-300.67858138,0.00011506,2]
[336381083,1724797850214,-610.36,0.00011506,2]
[336381084,1724797850224,-500.0,0.00011506,2]
[336381085,1724797850233,-500.0,0.00011506,2]
[336381086,1724797850243,-500.0,0.00011506,2]
[336381087,1724797850253,-500.0,0.00011506,2]
[336381088,1724797850262,-610.8,0.00011506,2]
[336381089,1724797850271,-3274.53,0.00011506,2]
[336381090,1724797850282,-500.0,0.00011506,2]
[336381091,1724797850293,-500.84,0.00011506,2]
[336381092,1724797850303,-500.0,0.00011506,2]
[336381093,1724797850312,-11684.23,0.00011506,2]
[336381094,1724797850324,-500.0,0.00011506,2]
[336381095,1724797850334,-197.38,0.00011506,2]
[336381096,1724797850343,-500.0,0.00011506,2]
[336381097,1724797850352,-500.0,0.00011506,2]
[336381098,1724797850361,-500.0,0.00011506,2]
[336381099,1724797850372,-500.0,0.00011506,2]
[336381100,1724797850382,-500.0,0.00011506,2]
[336381101,1724797850392,-500.0,0.00011506,2]
[336381102,1724797850407,-1064.31,0.00011506,2]
[336381103,1724797850417,-500.0,0.00011506,2]
[336381104,1724797850427,-4100.92,0.00011506,2]
[336381105,1724797850436,-561.57,0.00011506,2]
[336381106,1724797850447,-500.0,0.00011506,2]
[336381107,1724797850457,-500.0,0.00011506,2]
[336381108,1724797850467,-992.7,0.00011506,2]
[336381109,1724797850477,-500.0,0.00011506,2]
[336381110,1724797850488,-500.0,0.00011506,2]
[336381111,1724797850499,-500.0,0.00011506,2]
[336381112,1724797850509,-500.0,0.00011506,2]
[336381113,1724797850519,-500.0,0.00011506,2]
[336381114,1724797850529,-500.0,0.00011506,2]
[336381115,1724797850539,-500.0,0.00011506,2]
[336381116,1724797850554,-1754.54,0.00011506,2]
[336381117,1724797850564,-500.0,0.00011506,2]
[336381118,1724797850579,-500.0,0.00011506,2]
[336381119,1724797850589,-500.0,0.00011506,2]
[336381120,1724797850598,-7233.3,0.00011506,2]
[336381121,1724797850610,-500.0,0.00011506,2]
[336381122,1724797850620,-500.0,0.00011506,2]
[336381123,1724797850629,-500.0,0.00011506,2]
[336381124,1724797850639,-4549.37,0.00011506,2]
[336381125,1724797850648,-500.0,0.00011506,2]
[336381126,1724797850657,-405.0842841,0.00011506,2]
[336381127,1724797850667,-5578.16,0.00011506,2]
[336381128,1724797850676,-434.90866,0.00011521,2]
[336381129,1724797850685,-500.0,0.00011521,2]
[336381130,1724797850694,-4023.65605839,0.0001163,2]
[336381131,1724797850703,-811.78467002,0.00011712,2]
[336381132,1724797850713,-2144.54741694,0.00011712,2]
[336381133,1724797850723,-1079.35904932,0.00011712,2]
[336381134,1724797850733,-3095.19175936,0.00011731,2]
[336381135,1724797850743,-2284.37692518,0.00011731,3]
[336381136,1724797850752,-899.54550214,0.00011731,2]
[336381137,1724797850761,-500.0,0.00011773,2]
[336381138,1724797850771,-500.0,0.00011779,2]
[336381139,1724797850781,-500.0,0.00011779,2]
[336381140,1724797850790,-500.0,0.00011779,2]
[336381141,1724797850799,-500.0,0.00011779,2]
[336381142,1724797850809,-555.613438,0.0001178,2]
[336381143,1724797850823,-500.0,0.0001178,2]
[336381144,1724797850834,-500.0,0.0001178,2]
[336381145,1724797850844,-500.0,0.0001178,2]
[336381146,1724797850853,-500.0,0.0001178,2]
[336381147,1724797850863,-500.0,0.0001178,2]
[336381148,1724797850872,-500.0,0.0001178,2]
[336381149,1724797850881,-207.6203096,0.0001178,2]
[336381150,1724797850890,-500.0,0.0001178,2]
[336381151,1724797850900,-500.0,0.0001178,2]
[336381152,1724797850909,-500.0,0.0001178,2]
[336381153,1724797850919,-500.0,0.0001178,2]
[336381154,1724797850928,-500.0,0.0001178,2]
[336381155,1724797850937,-161.57346621,0.0001178,2]
[336381156,1724797850947,-500.0,0.0001178,2]
[336381157,1724797850957,-500.0,0.0001178,2]
[336381158,1724797850966,-500.0,0.0001178,2]
[336381159,1724797850976,-500.0,0.0001178,2]
[336381160,1724797850986,-1723.82,0.0001178,2]
[336381161,1724797850995,-500.0,0.0001178,2]
[336381162,1724797851004,-500.0,0.0001178,2]
[336381163,1724797851014,-562.08,0.0001178,2]
[336381164,1724797851024,-437.73,0.0001178,2]
[336381165,1724797851033,-500.0,0.0001178,2]
[336381166,1724797851042,-500.0,0.0001178,2]
[336381167,1724797851055,-500.0,0.0001178,2]
[336381168,1724797851065,-559.2694519,0.0001178,2]
[336381169,1724797851082,-517.47,0.0001178,2]
[336381170,1724797851091,-1027.95,0.0001178,2]
[336381171,1724797851101,-500.0,0.0001178,2]
[336381172,1724797851111,-614.99708397,0.0001178,2]
[336381173,1724797851120,-500.0,0.0001178,2]
[336381174,1724797851131,-500.0,0.0001178,2]
[336381175,1724797851140,-1835.68,0.0001178,2]
[336381176,1724797851150,-347.94978266,0.0001178,2]
[336381177,1724797851159,-185.89,0.0001178,2]
[336381178,1724797851168,-500.0,0.0001178,2]
[336381179,1724797851177,-500.0,0.0001178,2]
[336381180,1724797851186,-255.8,0.0001178,2]
[336381181,1724797851196,-500.0,0.0001178,2]
[336381182,1724797851204,-500.0,0.0001178,2]
[336381183,1724797851214,-500.0,0.0001178,2]
[336381184,1724797851223,-227.88,0.0001178,2]
[336381185,1724797851232,-500.0,0.0001178,2]
[336381186,1724797851242,-697.67,0.0001178,2]
[336381187,1724797851251,-503.14,0.0001178,2]
[336381188,1724797851260,-240.05,0.0001178,2]
[336381189,1724797851269,-500.0,0.0001178,2]
[336381190,1724797851278,-290.93984343,0.0001178,2]
[336381191,1724797851288,-1322.73,0.0001178,2]
[336381192,1724797851297,-259.96,0.0001178,2]
[336381193,1724797851306,-633.70898855,0.0001178,2]
[336381194,1724797851315,-500.0,0.0001178,2]
[336381195,1724797851337,-654.84,0.0001178,2]
[336381196,1724797851346,-628.4,0.0001178,2]
[336381197,1724797851357,-856.13,0.0001178,2]
[336381198,1724797851366,-500.0,0.0001178,2]
[336381199,1724797851376,-4210.91,0.0001178,2]
[336381200,1724797851385,-500.0,0.0001178,2]
[336381201,1724797851395,-500.0,0.0001178,2]
[336381202,1724797851408,-500.0,0.0001178,2]
[336381203,1724797851418,-500.0,0.0001178,2]
[336381204,1724797851427,-1310.5,0.0001178,2]
[336381205,1724797851437,-500.0,0.0001178,2]
[336381206,1724797851447,-500.0,0.0001178,2]
[336381207,1724797851456,-2791.22,0.0001178,2]
[336381208,1724797851465,-5760.34,0.0001178,2]
[336381209,1724797851475,-500.0,0.0001178,2]
[336381210,1724797851484,-1266.67,0.0001178,2]
[336381211,1724797851494,-500.0,0.0001178,2]
[336381212,1724797851505,-500.0,0.0001178,2]
[336381213,1724797851515,-2392.37,0.0001178,2]
[336381214,1724797851524,-6752.58,0.0001178,2]
[336381215,1724797851533,-568.64,0.0001178,2]
[336381216,1724797851542,-19039.17,0.0001178,2]
[336381217,1724797851552,-3767.5,0.0001178,2]
[336381218,1724797851561,-500.0,0.0001178,2]
[336381219,1724797851573,-708.06,0.0001178,2]
[336381220,1724797851582,-500.0,0.0001178,2]
[336381221,1724797851591,-1126.98,0.0001178,2]
[336381222,1724797851600,-4503.04,0.0001178,2]
[336381223,1724797851609,-500.0,0.0001178,2]
[336381224,1724797851619,-594.11900171,0.0001178,2]
[336381225,1724797851628,-466.07702903,0.0001178,2]
[336381226,1724797851637,-610.53,0.0001178,2]
[336381227,1724797851647,-500.0,0.0001178,2]
[336381228,1724797851657,-500.0,0.0001178,2]
[336381229,1724797851667,-386.42,0.0001178,2]
[336381230,1724797851679,-500.0,0.0001178,2]
[336381231,1724797851689,-500.0,0.0001178,2]
[336381232,1724797851698,-500.0,0.0001178,2]
[336381233,1724797851709,-500.0,0.0001178,2]
[336381234,1724797851720,-500.0,0.0001178,2]
[336381235,1724797851730,-500.0,0.0001178,2]
[336381236,1724797851739,-1663.07,0.0001178,2]
[336381237,1724797851749,-500.0,0.0001178,2]
[336381238,1724797851759,-500.0,0.0001178,2]
[336381239,1724797851768,-500.0,0.0001178,2]
[336381240,1724797851778,-500.0,0.0001178,2]
[336381241,1724797851788,-500.0,0.0001178,2]
[336381242,1724797851797,-500.0,0.0001178,2]
[336381243,1724797851807,-11684.23,0.0001178,2]
[336381244,1724797851816,-500.0,0.0001178,2]
[336381245,1724797851829,-500.0,0.0001178,2]
[336381246,1724797851839,-3274.53,0.0001178,2]
[336381247,1724797851847,-500.0,0.0001178,2]
[336381248,1724797851858,-500.0,0.0001178,2]
[336381249,1724797851867,-172.65,0.0001178,2]
[336381250,1724797851877,-500.0,0.0001178,2]
[336381251,1724797851886,-1064.31,0.0001178,2]
[336381252,1724797851896,-500.0,0.0001178,2]
[336381253,1724797851906,-4100.92,0.0001178,2]
[336381254,1724797851916,-500.0,0.0001178,2]
[336381255,1724797851926,-500.0,0.0001178,2]
[336381256,1724797851936,-992.7,0.0001178,2]
[336381257,1724797851950,-345.93000185,0.0001178,2]
[336381258,1724797851960,-500.0,0.0001178,2]
[336381259,1724797851969,-500.0,0.0001178,2]
[336381260,1724797851978,-500.0,0.0001178,2]
[336381261,1724797851987,-500.0,0.0001178,2]
[336381262,1724797851997,-314.23,0.0001178,2]
[336381263,1724797852007,-500.0,0.0001178,2]
[336381264,1724797852017,-1754.54,0.0001178,2]
[336381265,1724797852028,-567.27,0.0001178,2]
[336381266,1724797852037,-500.0,0.0001178,2]
[336381267,1724797852047,-7233.3,0.0001178,2]
[336381268,1724797852057,-540.24442495,0.0001178,2]
[336381269,1724797852066,-500.0,0.0001178,2]
[336381270,1724797852083,-500.0,0.0001178,2]
[336381271,1724797852092,-4549.37,0.0001178,2]
[336381272,1724797852102,-500.0,0.0001178,2]
[336381273,1724797852113,-5578.16,0.0001178,2]
[336381274,1724797852122,-1000.0,0.00011821,2]
[336381275,1724797852132,-4023.65605839,0.00011887,2]
[336381276,1724797852141,-729.39083996,0.00011894,2]
[336381277,1724797852151,-154.69833824,0.00011894,2]
[336381278,1724797852160,-288.5284708,0.00011894,2]
[336381279,1724797852169,-196.97183292,0.00011894,2]
[336381280,1724797852179,-154.69833824,0.00011894,2]
[336381281,1724797852188,-544.46212792,0.00011894,2]
[336381282,1724797852198,-500.0,0.00011899,2]
[336381283,1724797852208,-500.0,0.00011899,2]
[336381284,1724797852217,-616819.58155191,0.000119,2]
[336381285,1724797852433,-936.94835016,0.000119,2]
[336381286,1724797852445,-376.21404489,0.000119,2]
[336381287,1724797852457,-765.50861343,0.000119,2]
[336381288,1724797852469,-6291.80991261,0.000119,2]
[336381289,1724797852478,-420.0,0.00011943,2]
[336381290,1724797852488,-812.05632668,0.00011987,2]
[336381291,1724797852500,-309.18067122,0.00011987,2]
[336381292,1724797852510,-154.69833824,0.00011987,2]
[336381293,1724797852519,-254.12158803,0.00011987,2]
[336381294,1724797852529,-154.69833824,0.00011987,2]
[336381295,1724797852539,-320.53411242,0.00011987,2]
[336381296,1724797852548,-154.69833824,0.00011987,2]
[336381297,1724797852558,-155.62707936,0.00011987,2]
[336381298,1724797852568,-521.10684076,0.00011987,2]
[336381299,1724797852581,-180.94079709,0.00011987,2]
[336381300,1724797852594,-155.45570733,0.00011987,2]
[336381301,1724797852603,-216.46883672,0.00011987,2]
[336381302,1724797852613,-776.93246543,0.00011999,2]
[336381303,1724797852622,-504.20986298,0.00011999,2]
[336381304,1724797852631,-174.9797707,0.00011999,2]
[336381305,1724797852641,-776.93246543,0.00011999,2]
[336381306,1724797852782,-287.83826275,0.00011999,2]
[336381307,1724797852792,-154.77557542,0.00011999,2]
[336381308,1724797852803,-155.37616833,0.00011999,2]
[336381309,1724797852813,-666.01763079,0.00011999,2]
[336381310,1724797852827,-570.03577448,0.00011999,2]
[336381311,1724797852838,-1766.96117072,0.00012,2]
[336381312,1724797852848,-500.0,0.00012054,2]
[336381313,1724797852857,-294.51,0.00012054,2]
[336381314,1724797852867,-500.0,0.00012054,2]
[336381315,1724797852877,-178.03,0.00012054,2]
[336381316,1724797852887,-500.0,0.00012054,2]
[336381317,1724797852896,-155.47,0.00012054,2]
[336381318,1724797852906,-500.0,0.00012054,2]
[336381319,1724797852916,-448.58,0.00012054,2]
[336381320,1724797852927,-184.66,0.00012054,2]
[336381321,1724797852936,-259.39396587,0.00012054,2]
[336381322,1724797852949,-240.60603413,0.00012054,2]
[336381323,1724797852959,-500.0,0.00012054,2]
[336381324,1724797852969,-500.0,0.00012054,2]
[336381325,1724797852978,-500.0,0.00012054,2]
[336381326,1724797852988,-1723.82,0.00012054,2]
[336381327,1724797852998,-500.0,0.00012054,2]
[336381328,1724797853008,-500.0,0.00012054,2]
[336381329,1724797853018,-500.0,0.00012054,2]
[336381330,1724797853029,-500.0,0.00012054,2]
[336381331,1724797853039,-517.47,0.00012054,2]
[336381332,1724797853048,-1027.95,0.00012054,2]
[336381333,1724797853057,-500.0,0.00012054,2]
[336381334,1724797853067,-500.0,0.00012054,2]
[336381335,1724797853080,-1835.68,0.00012054,2]
[336381336,1724797853091,-500.0,0.00012054,2]
[336381337,1724797853101,-500.0,0.00012054,2]
[336381338,1724797853110,-500.0,0.00012054,2]
[336381339,1724797853120,-296.47396587,0.00012054,2]
[336381340,1724797853293,-417.814225,0.00010858,2]
[336381341,1724797853306,-304.40389192,0.00010858,2]
[336381342,1724797853316,-2998.9186475,0.00010958,2]
[336381343,1724797853331,-500.0,0.00010958,2]
[336381344,1724797853342,-502.22,0.00011232,2]
[336381345,1724797853351,-203.52603413,0.00012054,2]
[336381346,1724797853361,-535.08,0.00012054,2]
[336381347,1724797853371,-500.0,0.00012054,2]
[336381348,1724797853381,-697.67,0.00012054,2]
[336381349,1724797853390,-503.14,0.00012054,2]
[336381350,1724797853400,-1322.73,0.00012054,2]
[336381351,1724797853410,-654.84,0.00012054,2]
[336381352,1724797853425,-856.13,0.00012054,2]
[336381353,1724797853434,-4210.91,0.00012054,2]
[336381354,1724797853445,-500.0,0.00012054,2]
[336381355,1724797853456,-500.0,0.00012054,2]
[336381356,1724797853466,-1310.5,0.00012054,2]
[336381357,1724797853476,-500.0,0.00012054,2]
[336381358,1724797853486,-500.0,0.00012054,2]
[336381359,1724797853496,-2791.22,0.00012054,2]
[336381360,1724797853507,-5760.34,0.00012054,2]
[336381361,1724797853518,-1266.67,0.00012054,2]
[336381362,1724797853528,-500.0,0.00012054,2]
[336381363,1724797853538,-445.32612247,0.00012054,2]
[336381364,1724797853548,-1497.97530398,0.00012054,2]
[336381365,1724797853561,-894.39469602,0.00012054,2]
[336381366,1724797853572,-6752.58,0.00012054,2]
[336381367,1724797853581,-19039.17,0.00012054,2]
[336381368,1724797853591,-3767.5,0.00012054,2]
[336381369,1724797853601,-500.0,0.00012054,2]
[336381370,1724797853611,-708.06,0.00012054,2]
[336381371,1724797853622,-500.0,0.00012054,2]
[336381372,1724797853632,-1126.98,0.00012054,2]
[336381373,1724797853641,-4503.04,0.00012054,2]
[336381374,1724797853651,-500.0,0.00012054,2]
[336381375,1724797853660,-610.53,0.00012054,2]
[336381376,1724797853670,-500.0,0.00012054,2]
[336381377,1724797853679,-421.57,0.00012054,2]
[336381378,1724797853690,-253.03,0.00012054,2]
[336381379,1724797853699,-500.0,0.00012054,2]
[336381380,1724797853709,-500.0,0.00012054,2]
[336381381,1724797853719,-500.0,0.00012054,2]
[336381382,1724797853728,-500.0,0.00012054,2]
[336381383,1724797853738,-1663.07,0.00012054,2]
[336381384,1724797853748,-500.0,0.00012054,2]
[336381385,1724797853758,-500.0,0.00012054,2]
[336381386,1724797853768,-500.0,0.00012054,2]
[336381387,1724797853778,-500.0,0.00012054,2]
[336381388,1724797853787,-500.0,0.00012054,2]
[336381389,1724797853797,-500.0,0.00012054,2]
[336381390,1724797853806,-11684.23,0.00012054,2]
[336381391,1724797853816,-500.0,0.00012054,2]
[336381392,1724797853830,-500.0,0.00012054,2]
[336381393,1724797853841,-3274.53,0.00012054,2]
[336381394,1724797853850,-500.0,0.00012054,2]
[336381395,1724797853860,-195.32,0.00012054,2]
[336381396,1724797853870,-500.0,0.00012054,2]
[336381397,1724797853880,-1064.31,0.00012054,2]
[336381398,1724797853889,-500.0,0.00012054,2]
[336381399,1724797853899,-4100.92,0.00012054,2]
[336381400,1724797853910,-275.99,0.00012054,2]
[336381401,1724797853920,-500.0,0.00012054,2]
[336381402,1724797853930,-992.7,0.00012054,2]
[336381403,1724797853940,-363.63,0.00012054,2]
[336381404,1724797853950,-500.0,0.00012054,2]
[336381405,1724797853961,-500.0,0.00012054,2]
[336381406,1724797853971,-1754.54,0.00012054,2]
[336381407,1724797853981,-505.52,0.00012054,2]
[336381408,1724797853991,-7233.3,0.00012054,2]
[336381409,1724797854001,-161.57,0.00012054,2]
[336381410,1724797854011,-500.0,0.00012054,2]
[336381411,1724797854021,-4549.37,0.00012054,2]
[336381412,1724797854031,-500.0,0.00012054,2]
[336381413,1724797854041,-5578.16,0.00012054,2]
[336381414,1724797854051,-252.39906694,0.0001212,2]
[336381415,1724797854061,-695.36068026,0.0001212,2]
[336381416,1724797854077,-154.95091821,0.00012163,2]
[336381417,1724797854087,-154.69833824,0.00012163,2]
[336381418,1724797854097,-306.0,0.00012179,2]
[336381419,1724797854106,-5664.5443247,0.00012228,2]
[336381420,1724797854115,-500.0,0.00012321,2]
[336381421,1724797854125,-482.64355843,0.00012328,2]
[336381422,1724797854134,-500.0,0.00012328,2]
[336381423,1724797854144,-500.0,0.00012328,2]
[336381424,1724797854154,-500.0,0.00012328,2]
[336381425,1724797854163,-632.00744761,0.00012328,2]
[336381426,1724797854174,-500.0,0.00012328,2]
[336381427,1724797854184,-500.0,0.00012328,2]
[336381428,1724797854193,-1723.82,0.00012328,2]
[336381429,1724797854202,-500.0,0.00012328,2]
[336381430,1724797854211,-500.0,0.00012328,2]
[336381431,1724797854222,-500.0,0.00012328,2]
[336381432,1724797854231,-500.0,0.00012328,2]
[336381433,1724797854241,-517.47,0.00012328,2]
[336381434,1724797854250,-1027.95,0.00012328,2]
[336381435,1724797854259,-500.0,0.00012328,2]
[336381436,1724797854268,-500.0,0.00012328,2]
[336381437,1724797854277,-1835.68,0.00012328,2]
[336381438,1724797854286,-500.0,0.00012328,2]
[336381439,1724797854296,-500.0,0.00012328,2]
[336381440,1724797854305,-500.0,0.00012328,2]
[336381441,1724797854314,-649.58,0.00012328,2]
[336381442,1724797854326,-441.16,0.00012328,2]
[336381443,1724797854336,-697.67,0.00012328,2]
[336381444,1724797854345,-503.14,0.00012328,2]
[336381445,1724797854354,-1322.73,0.00012328,2]
[336381446,1724797854363,-654.84,0.00012328,2]
[336381447,1724797854372,-856.13,0.00012328,2]
[336381448,1724797854381,-4210.91,0.00012328,2]
[336381449,1724797854390,-500.0,0.00012328,2]
[336381450,1724797854401,-500.0,0.00012328,2]
[336381451,1724797854410,-1310.5,0.00012328,2]
[336381452,1724797854421,-500.0,0.00012328,2]
[336381453,1724797854430,-193.73,0.00012328,2]
[336381454,1724797854439,-2791.22,0.00012328,2]
[336381455,1724797854450,-5760.34,0.00012328,2]
[336381456,1724797854459,-1266.67,0.00012328,2]
[336381457,1724797854469,-500.0,0.00012328,2]
[336381458,1724797854478,-2392.37,0.00012328,2]
[336381459,1724797854487,-6752.58,0.00012328,2]
[336381460,1724797854498,-19039.17,0.00012328,2]
[336381461,1724797854507,-3767.5,0.00012328,2]
[336381462,1724797854516,-463.30527446,0.00012328,2]
[336381463,1724797854526,-708.06,0.00012328,2]
[336381464,1724797854536,-500.0,0.00012328,2]
[336381465,1724797854545,-1126.98,0.00012328,2]
[336381466,1724797854554,-4503.04,0.00012328,2]
[336381467,1724797854564,-622.05,0.00012328,2]
[336381468,1724797854577,-610.53,0.00012328,2]
[336381469,1724797854587,-500.0,0.00012328,2]
[336381470,1724797854597,-500.0,0.00012328,2]
[336381471,1724797854607,-500.0,0.00012328,2]
[336381472,1724797854616,-500.0,0.00012328,2]
[336381473,1724797854626,-1663.07,0.00012328,2]
[336381474,1724797854636,-500.0,0.00012328,2]
[336381475,1724797854646,-602.9,0.00012328,2]
[336381476,1724797854656,-500.0,0.00012328,2]
[336381477,1724797854666,-11684.23,0.00012328,2]
[336381478,1724797854676,-500.0,0.00012328,2]
[336381479,1724797854686,-3274.53,0.00012328,2]
[336381480,1724797854696,-500.0,0.00012328,2]
[336381481,1724797854705,-500.0,0.00012328,2]
[336381482,1724797854715,-1064.31,0.00012328,2]
[336381483,1724797854724,-500.0,0.00012328,2]
[336381484,1724797854734,-4100.92,0.00012328,2]
[336381485,1724797854743,-992.7,0.00012328,2]
[336381486,1724797854754,-500.0,0.00012328,2]
[336381487,1724797854765,-500.0,0.00012328,2]
[336381488,1724797854775,-1754.54,0.00012328,2]
[336381489,1724797854785,-7233.3,0.00012328,2]
[336381490,1724797854796,-230.28,0.00012328,2]
[336381491,1724797854806,-4549.37,0.00012328,2]
[336381492,1724797854815,-500.0,0.00012328,2]
[336381493,1724797854828,-5578.16,0.00012328,2]
[336381494,1724797854840,-155.00791407,0.00012356,2]
[336381495,1724797854850,-15849.31730626,0.00012436,2]
[336381496,1724797854861,-154.69833824,0.00012436,2]
[336381497,1724797854871,-7019.02837854,0.00012436,2]
[336381498,1724797854881,-2714.82142664,0.00012436,2]
[336381499,1724797854890,-154.88733987,0.00012436,2]
[336381500,1724797854900,-151.0,0.00012602,2]
[336381501,1724797854909,-151.0,0.00012602,2]
[336381502,1724797854919,-500.0,0.00012602,2]
[336381503,1724797854929,-500.0,0.00012602,2]